bitfinex-derivatives/quotes_BTCF0:USTF0_20251115
["timestamp","ask_amount","ask_price","bid_price","bid_amount"]
[1763231817899,0.005,96156.0,96155.0,0.49220901]
[1763231818100,0.000156,96160.0,96155.0,0.49220901]
[1763231818101,0.000156,96160.0,96155.0,0.37244]
[1763231818294,0.3608,96187.0,96165.0,0.05166]
[1763231818505,0.01319,96185.0,96165.0,0.05166]
[1763231819396,0.00125997,96166.0,96165.0,0.05166]
[1763231819702,0.00125997,96166.0,96165.0,0.41246]
[1763231820393,0.002,96166.0,96165.0,0.41246]
[1763231820593,0.000156,96175.0,96174.0,0.04475]
[1763231820791,0.05834,96190.0,96189.0,0.04475]
[1763231820998,0.08225247,96190.0,96189.0,0.04475]
[1763231821599,0.05834,96190.0,96189.0,0.04475]
[1763231821805,0.04553,96190.0,96189.0,0.04475]
[1763231822106,0.04653,96190.0,96189.0,0.04475]
[1763231822703,0.05972,96190.0,96189.0,0.04475]
[1763231822907,0.04553,96181.0,96180.0,0.12609934]
[1763231823207,0.04553,96181.0,96180.0,0.04710403]
[1763231825503,0.04653,96181.0,96180.0,0.04710403]
[1763231832708,0.001,96181.0,96180.0,0.05369403]
[1763231833115,0.02207,96181.0,96180.0,0.05369403]
[1763231833413,0.04325,96181.0,96180.0,0.05369403]
[1763231835409,0.001,96181.0,96180.0,0.05369403]
[1763231835606,0.05544,96195.0,96194.0,0.04413]
[1763231837217,0.08034366,96195.0,96194.0,0.04413]
[1763231837909,0.06715366,96195.0,96194.0,0.04413]
[1763231838110,0.04597366,96195.0,96194.0,0.04413]
[1763231838314,0.06715366,96195.0,96194.0,0.04413]
[1763231838614,0.001,96195.0,96194.0,0.04413]
[1763231838820,0.00010285,96199.0,96195.0,0.0569]
[1763231840018,0.04725,96196.0,96195.0,0.0569]
[1763231840414,0.04825,96196.0,96195.0,0.04413]
[1763231841121,0.04825,96196.0,96195.0,0.0569]
[1763231841322,0.006,96196.0,96195.0,0.0569]
[1763231841723,0.02607,96196.0,96195.0,0.0569]
[1763231842023,0.02707,96196.0,96195.0,0.0569]
[1763231842218,0.04825,96196.0,96195.0,0.0569]
[1763231842519,0.04725,96196.0,96195.0,0.0569]
[1763231842710,0.04825,96196.0,96195.0,0.0569]
[1763231845013,0.02707,96196.0,96195.0,0.0569]
[1763231845220,0.04825,96196.0,96195.0,0.0569]
[1763231845416,0.04825,96196.0,96195.0,0.04413]
[1763231845722,0.04825,96196.0,96195.0,0.0225]
[1763231846318,0.04825,96196.0,96195.0,0.04413]
[1763231846520,0.07191557,96196.0,96195.0,0.04413]
[1763231847220,0.04825,96196.0,96195.0,0.04413]
[1763231848120,0.04825,96196.0,96195.0,0.0225]
[1763231849222,0.04825,96196.0,96195.0,0.04442]
[1763231854332,0.04825,96196.0,96195.0,0.05795]
[1763231854333,0.006,96196.0,96195.0,0.05795]
[1763231854936,0.02866,96196.0,96195.0,0.05795]
[1763231855239,0.006,96196.0,96195.0,0.05795]
[1763231855836,0.02866,96196.0,96195.0,0.05795]
[1763231856037,0.006,96196.0,96195.0,0.05795]
[1763231857439,0.005,96196.0,96195.0,0.05795]
[1763231857647,0.006,96196.0,96195.0,0.05795]
[1763231858447,0.005,96196.0,96195.0,0.05795]
[1763231859445,0.0501,96196.0,96195.0,0.05795]
[1763231859643,0.0501,96196.0,96195.0,0.04442]
[1763231860249,0.0501,96196.0,96195.0,0.05795]
[1763231860645,0.02766,96196.0,96195.0,0.05795]
[1763231860852,0.005,96196.0,96195.0,0.05795]
[1763231862150,0.00010285,96199.0,96198.0,0.04439]
[1763231862356,0.02291986,96206.0,96205.0,0.04439]
[1763231862653,0.02291986,96206.0,96205.0,0.41178]
[1763231862654,0.00025986,96206.0,96205.0,0.41178]
[1763231863251,0.02291986,96206.0,96205.0,0.41178]
[1763231864246,0.02391986,96206.0,96205.0,0.41178]
[1763231865152,0.04635986,96206.0,96205.0,0.41178]
[1763231865957,0.00125986,96206.0,96205.0,0.41178]
[1763231866654,0.02391986,96206.0,96205.0,0.41178]
[1763231866852,0.00125986,96206.0,96205.0,0.41178]
[1763231867962,0.05864,96225.0,96224.0,0.04439]
[1763231868653,0.08231651,96225.0,96224.0,0.04439]
[1763231869346,0.02367651,96225.0,96224.0,0.04439]
[1763231869546,0.03738648,96234.0,96233.0,0.04439]
[1763231869547,0.08248648,96234.0,96233.0,0.04439]
[1763231869855,0.08248648,96234.0,96230.0,0.02466803]
[1763231869856,0.0451,96231.0,96230.0,0.02466803]
[1763231870355,0.06878009,96231.0,96230.0,0.02466803]
[1763231870560,0.06878009,96231.0,96220.0,0.24327632]
[1763231870561,0.01354,96225.0,96220.0,0.12163816]
[1763231870756,0.0451,96221.0,96220.0,0.02466803]
[1763231870952,0.0451,96221.0,96220.0,0.00219803]
[1763231871952,0.06876721,96221.0,96220.0,0.00219803]
[1763231872549,0.06876721,96221.0,96215.0,0.36095592]
[1763231872550,0.05864,96216.0,96215.0,0.00015592]
[1763231873060,0.05864,96216.0,96210.0,0.00219803]
[1763231873061,0.0451,96211.0,96210.0,0.00219803]
[1763231873261,0.0451,96201.0,96200.0,0.28766632]
[1763231873560,0.0451,96201.0,96200.0,0.04658803]
[1763231874264,0.0451,96201.0,96200.0,0.00219803]
[1763231876356,0.0451,96195.0,96194.0,0.3608]
[1763231877552,0.0451,96195.0,96194.0,0.40519]
[1763231878261,0.0451,96195.0,96194.0,0.46127396]
[1763231878865,0.0451,96195.0,96194.0,0.40519]
[1763231879866,0.0451,96195.0,96194.0,0.40619]
[1763231880067,0.05697,96204.0,96203.0,0.04527]
[1763231880260,0.04343,96201.0,96200.0,0.05828522]
[1763231880568,0.04343,96201.0,96200.0,0.10355522]
[1763231881170,0.04343,96195.0,96194.0,0.001]
[1763231881465,0.04343,96187.0,96186.0,0.00013118]
[1763231881670,0.40423,96187.0,96186.0,0.00013118]
[1763231881962,0.41761,96187.0,96186.0,0.00013118]
[1763231882362,0.40423,96187.0,96186.0,0.00013118]
[1763231882766,0.41761,96187.0,96186.0,0.00013118]
[1763231883168,0.41861,96187.0,96186.0,0.00013118]
[1763231884569,0.41761,96187.0,96186.0,0.00013118]
[1763231884770,0.41861,96187.0,96186.0,0.00013118]
[1763231885362,0.41861,96187.0,96177.0,0.00015592]
[1763231885363,0.04343,96178.0,96177.0,0.00015592]
[1763231885569,0.04343,96167.0,96160.0,0.12163816]
[1763231886066,0.04343,96167.0,96158.0,0.07484901]
[1763231886261,0.40423,96179.0,96178.0,0.04527]
[1763231886460,0.40431759,96179.0,96178.0,0.04527]
[1763231887269,0.04343,96174.0,96173.0,0.059]
[1763231890571,0.40431759,96179.0,96178.0,0.04527]
[1763231891774,0.04351759,96179.0,96178.0,0.04527]
[1763231892374,8.759e-05,96179.0,96178.0,0.04527]
[1763231892870,0.02306592,96188.0,96187.0,0.05667]
[1763231893172,0.02306592,96188.0,96187.0,0.41747]
[1763231893765,0.04423957,96188.0,96187.0,0.41747]
[1763231895574,0.00021957,96188.0,96187.0,0.41747]
[1763231895768,0.00021957,96188.0,96187.0,0.41847]
[1763231896671,0.00021957,96188.0,96187.0,0.41747]
[1763231898175,0.00021957,96188.0,96187.0,0.41847]
[1763231898779,0.00021957,96188.0,96187.0,0.41747]
[1763231901076,0.02312957,96188.0,96187.0,0.41747]
[1763231904581,0.00021957,96188.0,96187.0,0.41747]
[1763231905282,0.02312957,96188.0,96187.0,0.41747]
[1763231907683,0.02312957,96188.0,96187.0,0.05667]
[1763231908383,0.04423957,96188.0,96187.0,0.05667]
[1763231910282,0.04313,96186.0,96185.0,0.07484901]
[1763231910486,0.00021957,96188.0,96180.0,0.01325]
[1763231910487,0.04313,96181.0,96180.0,0.02504803]
[1763231910676,0.04313,96181.0,96180.0,0.04662803]
[1763231911080,0.04313,96181.0,96180.0,0.00219803]
[1763231911279,0.04313,96181.0,96180.0,0.02504803]
[1763231911587,0.04313,96181.0,96180.0,0.05934803]
[1763231911994,0.04313,96181.0,96180.0,0.00219803]
[1763231912380,0.04313,96181.0,96180.0,0.02504803]
[1763231913578,0.04313,96181.0,96180.0,0.04662803]
[1763231917789,0.40393,96181.0,96180.0,0.00219803]
[1763231917995,0.04313,96170.0,96169.0,0.07500493]
[1763231918185,0.04313,96170.0,96169.0,0.00015592]
[1763231918786,0.04313,96170.0,96169.0,0.02300592]
[1763231918980,0.04313,96170.0,96169.0,0.04458592]
[1763231925009,0.04313,96170.0,96169.0,0.00015592]
[1763231927206,0.04313,96167.0,96153.0,0.09308206]
[1763231927410,0.04313,96152.0,96151.0,0.02285]
[1763231927606,0.04313,96151.0,96150.0,0.00219803]
[1763231928308,0.04313,96151.0,96150.0,0.04662803]
[1763231931504,0.02167,96151.0,96150.0,0.04662803]
[1763231931705,0.38247,96155.0,96154.0,0.04443]
[1763231931905,0.40393,96155.0,96154.0,0.11913231]
[1763231932410,0.40393,96155.0,96154.0,0.04443]
[1763231932809,0.02167,96155.0,96154.0,0.04443]
[1763231933005,0.404086,96160.0,96159.0,0.05715]
[1763231933202,0.043286,96160.0,96159.0,0.05715]
[1763231933410,0.000156,96160.0,96159.0,0.05715]
[1763231934201,0.043286,96160.0,96159.0,0.05715]
[1763231935017,0.043286,96160.0,96159.0,0.13185231]
[1763231935406,0.000156,96160.0,96159.0,0.13185231]
[1763231936411,0.000156,96160.0,96159.0,0.05715]
[1763231937417,0.021826,96160.0,96159.0,0.05715]
[1763231937617,0.043286,96160.0,96159.0,0.05715]
[1763231940913,0.04539,96156.0,96155.0,0.09308206]
[1763231941219,0.04539,96156.0,96155.0,0.04467]
[1763231941917,0.04539,96156.0,96140.0,0.17427565]
[1763231941918,0.04539,96153.0,96152.0,0.07476342]
[1763231942115,0.04539,96153.0,96124.0,0.3744]
[1763231942116,0.04539,96146.0,96145.0,0.09308206]
[1763231942322,0.04539,96144.0,96143.0,0.09308206]
[1763231942622,0.04539,96142.0,96140.0,0.00219803]
[1763231942822,0.04539,96142.0,96135.0,0.09308206]
[1763231943318,0.04539,96142.0,96134.0,0.09308206]
[1763231943908,0.04539,96142.0,96135.0,0.09308206]
[1763231944114,0.04539,96142.0,96136.0,0.09308206]
[1763231944115,0.04639,96142.0,96136.0,0.09308206]
[1763231944508,0.04539,96132.0,96131.0,0.05827]
[1763231944908,0.3608,96138.0,96131.0,0.0136]
[1763231945113,0.40619,96138.0,96137.0,0.04467]
[1763231946114,0.40619,96138.0,96137.0,0.13812536]
[1763231946320,0.40619,96138.0,96137.0,0.04467]
[1763231946517,0.40619,96138.0,96137.0,0.13812536]
[1763231947520,0.40619,96138.0,96137.0,0.04467]
[1763231948018,0.40619,96138.0,96137.0,0.02184]
[1763231948224,0.04539,96132.0,96131.0,0.05827]
[1763231949213,0.3608,96138.0,96131.0,0.05827]
[1763231949214,0.40619,96138.0,96137.0,0.04467]
[1763231951023,0.04539,96138.0,96137.0,0.04467]
[1763231951218,0.02328,96138.0,96137.0,0.04467]
[1763231951615,0.04608,96138.0,96137.0,0.04467]
[1763231952219,0.40575365,96146.0,96145.0,0.05758]
[1763231952418,0.36086365,96146.0,96145.0,0.05758]
[1763231952623,0.36086365,96146.0,96145.0,0.15104652]
[1763231953020,0.02215365,96146.0,96145.0,0.15104652]
[1763231953419,0.02215365,96146.0,96145.0,0.05758]
[1763231953918,6.365e-05,96146.0,96145.0,0.05758]
[1763231954321,6.365e-05,96146.0,96145.0,0.15104769]
[1763231954521,6.365e-05,96146.0,96145.0,0.05758]
[1763231955429,6.365e-05,96146.0,96145.0,0.151055]
[1763231957723,6.365e-05,96146.0,96145.0,0.05758]
[1763231958823,6.365e-05,96146.0,96145.0,0.15107131]
[1763231959224,6.365e-05,96146.0,96145.0,0.05758]
[1763231959626,6.365e-05,96146.0,96145.0,0.151069]
[1763231960340,6.365e-05,96146.0,96145.0,0.05758]
[1763231961426,0.3608,96165.0,96159.0,0.04468]
[1763231962029,0.3608,96174.0,96159.0,0.04468]
[1763231965137,0.045046,96160.0,96159.0,0.04468]
[1763231966244,0.022246,96160.0,96159.0,0.04468]
[1763231966432,0.045046,96160.0,96159.0,0.04468]
[1763231967437,0.045046,96160.0,96159.0,0.11945787]
[1763231968444,0.000156,96160.0,96159.0,0.11945787]
[1763231970349,0.044016,96160.0,96159.0,0.04468]
[1763231980977,0.000156,96160.0,96159.0,0.04468]
[1763231988482,0.40466,96181.0,96180.0,0.05716]
[1763231988683,0.42853176,96181.0,96180.0,0.05935803]
[1763231989570,0.42953176,96181.0,96180.0,0.05935803]
[1763231989777,0.04386,96152.0,96146.0,0.07484836]
[1763231989974,0.04386,96147.0,96146.0,0.04321]
[1763231990282,0.40466,96147.0,96146.0,0.04321]
[1763232007690,0.3608,96147.0,96146.0,0.04321]
[1763232008902,0.405,96147.0,96146.0,0.04321]
[1763232022312,0.405,96147.0,96144.0,0.07484836]
[1763232022512,0.04458,96141.0,96140.0,0.07704639]
[1763232022713,0.04458,96141.0,96140.0,0.00219803]
[1763232023217,0.04458,96138.0,96137.0,0.000156]
[1763232023617,0.00732,96140.0,96128.0,0.00011594]
[1763232023816,0.3608,96129.0,96128.0,0.00011594]
[1763232024112,0.36091594,96129.0,96114.0,0.09348212]
[1763232024319,0.36091594,96129.0,96110.0,0.13240015]
[1763232024320,0.3608,96116.0,96110.0,0.13240015]
[1763232024506,0.3608,96116.0,96110.0,0.03891803]
[1763232024703,0.3608,96116.0,96110.0,0.06107803]
[1763232030819,0.3608,96116.0,96114.0,0.05792]
[1763232031221,0.3608,96116.0,96115.0,0.04478]
[1763232040316,0.3608,96116.0,96115.0,0.02288]
[1763232040515,0.3608,96116.0,96114.0,0.01314]
[1763232040915,0.3608,96116.0,96114.0,0.03602]
[1763232043331,0.3608,96116.0,96110.0,0.03858803]
[1763232043530,0.3608,96116.0,96110.0,0.03639]
[1763232043734,0.3608,96116.0,96110.0,0.03858803]
[1763232044936,0.3608,96116.0,96110.0,0.00219803]
[1763232046635,0.3608,96116.0,96103.0,0.00010434]
[1763232046834,0.3608,96107.0,96103.0,0.00010434]
[1763232047135,0.3608,96107.0,96103.0,0.04488434]
[1763232048739,0.3608,96107.0,96103.0,0.02298434]
[1763232049429,7.454e-05,96106.0,96103.0,0.00010434]
[1763232054937,7.454e-05,96106.0,96103.0,0.02298434]
[1763232056043,7.454e-05,96106.0,96105.0,0.05792]
[1763232075154,4.54e-06,96106.0,96105.0,0.05792]
[1763232076444,0.3608,96115.0,96114.0,0.04356]
[1763232076445,0.29080454,96115.0,96114.0,0.04356]
[1763232076650,0.29080454,96115.0,96114.0,0.05707]
[1763232076850,0.25580454,96115.0,96114.0,0.13196717]
[1763232077370,0.3608,96126.0,96122.0,0.04356]
[1763232077657,0.0001974,96123.0,96122.0,0.04356]
[1763232081959,0.3608,96135.0,96134.0,0.04356]
[1763232083749,0.38217,96135.0,96134.0,0.04356]
[1763232084059,0.02137,96135.0,96134.0,0.04356]
[1763232084255,0.04341,96135.0,96134.0,0.04356]
[1763232086558,0.043566,96144.0,96143.0,0.04356]
[1763232093667,0.05992,96135.0,96134.0,0.04411]
[1763232093864,0.04595,96127.0,96126.0,0.40491]
[1763232094363,0.04595,96127.0,96126.0,0.04411]
[1763232094562,0.04595,96126.0,96125.0,0.021806]
[1763232094762,0.05992,96126.0,96125.0,0.021806]
[1763232095469,0.05992,96126.0,96125.0,0.044266]
[1763232101474,0.05992,96126.0,96125.0,0.000156]
[1763232101767,0.05992,96126.0,96125.0,0.021806]
[1763232101972,0.05992,96126.0,96125.0,0.044266]
[1763232118589,0.42072,96126.0,96125.0,0.044266]
[1763232122197,0.42072,96126.0,96125.0,0.000156]
[1763232123792,0.38361,96126.0,96125.0,0.043166]
[1763232124006,0.3837,96126.0,96125.0,0.043166]
[1763232124394,0.40648,96126.0,96125.0,0.043166]
[1763232125306,0.3847,96126.0,96125.0,0.043166]
[1763232125505,0.40648,96126.0,96125.0,0.043166]
[1763232125907,0.40648,96126.0,96125.0,0.022136]
[1763232126209,0.40648,96126.0,96125.0,0.043166]
[1763232127209,0.40548,96126.0,96125.0,0.043166]
[1763232127407,0.40648,96126.0,96125.0,0.043166]
[1763232128315,0.40648,96126.0,96125.0,0.000156]
[1763232128905,0.40648,96126.0,96125.0,0.07509751]
[1763232129704,0.40648,96126.0,96125.0,0.000156]
[1763232130507,0.40648,96126.0,96125.0,0.043166]
[1763232133615,0.0126,96132.0,96131.0,0.04399]
[1763232133616,0.04628,96132.0,96131.0,0.04399]
[1763232133801,0.3608,96135.0,96134.0,0.04399]
[1763232134410,0.3608,96135.0,96134.0,0.11892568]
[1763232134819,0.40708,96135.0,96134.0,0.04399]
[1763232135616,0.04628,96135.0,96134.0,0.04399]
[1763232135913,0.046436,96144.0,96143.0,0.04399]
[1763232136416,0.000156,96144.0,96143.0,0.04399]
[1763232136818,0.023466,96144.0,96143.0,0.04399]
[1763232139617,0.12192025,96160.0,96154.0,0.04399]
[1763232139618,0.338686,96155.0,96154.0,0.04399]
[1763232140316,0.04628,96155.0,96154.0,0.04399]
[1763232140622,0.046436,96164.0,96163.0,0.04399]
[1763232140808,0.0705557,96164.0,96163.0,0.04399]
[1763232141613,0.023466,96164.0,96163.0,0.04399]
[1763232141814,0.001156,96164.0,96163.0,0.04399]
[1763232142719,0.023466,96164.0,96163.0,0.04399]
[1763232142914,0.047436,96164.0,96163.0,0.04399]
[1763232143312,0.048436,96164.0,96163.0,0.04399]
[1763232144016,0.047436,96164.0,96163.0,0.04399]
[1763232144321,0.048436,96164.0,96163.0,0.04399]
[1763232145913,0.048436,96164.0,96163.0,0.02118]
[1763232146112,0.04628,96161.0,96160.0,0.04618803]
[1763232147319,0.04728,96161.0,96160.0,0.04618803]
[1763232147519,0.04828,96161.0,96160.0,0.04618803]
[1763232150827,0.04828,96161.0,96160.0,0.00219803]
[1763232151019,0.04828,96161.0,96160.0,0.02546803]
[1763232151221,0.04828,96161.0,96160.0,0.00219803]
[1763232151421,0.04828,96161.0,96160.0,0.04797803]
[1763232153724,0.04378,96151.0,96150.0,0.16770025]
[1763232153934,0.04378,96151.0,96150.0,0.04797803]
[1763232156520,0.04378,96151.0,96150.0,0.02546803]
[1763232157119,0.04378,96151.0,96150.0,0.04797803]
[1763232158534,0.04378,96151.0,96150.0,0.00219803]
[1763232159824,0.04378,96151.0,96150.0,0.04797803]
[1763232171044,0.04378,96162.0,96161.0,0.04578]
[1763232171259,0.06780577,96162.0,96161.0,0.04578]
[1763232172160,0.06880577,96162.0,96161.0,0.04578]
[1763232172751,0.06880577,96162.0,96145.0,0.000156]
[1763232172752,0.05685,96150.0,96145.0,0.000156]
[1763232172951,0.04378,96150.0,96149.0,0.40658]
[1763232177252,0.04378,96150.0,96149.0,0.04578]
[1763232184452,0.01117,96165.0,96145.0,0.013166]
[1763232184453,0.044436,96164.0,96163.0,0.04287]
[1763232184755,0.06846158,96164.0,96163.0,0.04287]
[1763232185157,0.02418158,96164.0,96163.0,0.04287]
[1763232185352,0.04563158,96164.0,96163.0,0.04287]
[1763232185547,0.06946158,96164.0,96163.0,0.04287]
[1763232186153,0.02518158,96164.0,96163.0,0.04287]
[1763232186756,0.02618158,96164.0,96163.0,0.04287]
[1763232188561,0.002156,96164.0,96163.0,0.40367]
[1763232193254,0.08145648,96186.0,96185.0,0.05718]
[1763232193459,0.06807024,96186.0,96185.0,0.05718]
[1763232194468,0.07007024,96186.0,96185.0,0.05718]
[1763232195369,0.07207024,96186.0,96185.0,0.05718]
[1763232195868,0.07207024,96186.0,96185.0,0.04445]
[1763232196864,0.07207024,96186.0,96185.0,0.05718]
[1763232199662,0.07207024,96186.0,96185.0,0.04445]
[1763232199970,0.07007024,96186.0,96185.0,0.04445]
[1763232200562,0.06907024,96186.0,96185.0,0.04445]
[1763232200762,0.07007024,96186.0,96185.0,0.04445]
[1763232201465,0.04865024,96186.0,96185.0,0.05718]
[1763232201861,0.02600024,96186.0,96185.0,0.05718]
[1763232202065,0.02500024,96186.0,96185.0,0.05718]
[1763232202268,0.02600024,96186.0,96185.0,0.05718]
[1763232204270,0.002,96186.0,96185.0,0.05718]
[1763232204773,0.001,96186.0,96185.0,0.05718]
[1763232204975,0.002,96186.0,96185.0,0.05718]
[1763232207071,0.02594362,96186.0,96185.0,0.05718]
[1763232207376,0.002,96186.0,96185.0,0.05718]
[1763232207767,0.02594332,96186.0,96185.0,0.05718]
[1763232208071,0.002,96186.0,96185.0,0.05718]
[1763232208667,0.045596,96195.0,96194.0,0.043]
[1763232208869,0.06953927,96195.0,96194.0,0.043]
[1763232209669,0.07053927,96195.0,96194.0,0.043]
[1763232209874,0.07153927,96195.0,96194.0,0.043]
[1763232212465,0.07153927,96195.0,96194.0,0.0212]
[1763232212670,0.07153927,96195.0,96190.0,0.00219803]
[1763232212671,0.04516,96191.0,96190.0,0.00219803]
[1763232212875,0.42990327,96191.0,96190.0,0.00219803]
[1763232213082,0.04516,96181.0,96180.0,0.04432]
[1763232213283,0.04516,96181.0,96180.0,0.04651803]
[1763232215280,0.04616,96181.0,96180.0,0.04651803]
[1763232215880,0.04516,96181.0,96180.0,0.04651803]
[1763232216087,0.04616,96181.0,96180.0,0.04651803]
[1763232216378,0.07011767,96181.0,96180.0,0.02471803]
[1763232216581,0.07011767,96181.0,96180.0,0.00219803]
[1763232219284,0.43091767,96181.0,96180.0,0.00219803]
[1763232219889,0.43091767,96181.0,96180.0,0.02471803]
[1763232220183,0.43091767,96181.0,96180.0,0.00219803]
[1763232220379,0.07011767,96181.0,96180.0,0.02471803]
[1763232220680,0.07011767,96181.0,96180.0,0.04651803]
[1763232223585,0.07011767,96181.0,96180.0,0.00219803]
[1763232228186,0.04516,96177.0,96176.0,0.022676]
[1763232228787,0.04516,96177.0,96176.0,0.044476]
[1763232232192,0.06914572,96177.0,96162.0,0.07493568]
[1763232232395,0.04516,96161.0,96160.0,0.47999514]
[1763232232589,0.04516,96161.0,96160.0,0.13101317]
[1763232232782,0.40596,96171.0,96170.0,0.04432]
[1763232232986,0.04516,96161.0,96160.0,0.13101317]
[1763232233181,0.04516,96161.0,96160.0,0.12139317]
[1763232233592,0.04516,96161.0,96160.0,0.04651803]
[1763232235090,0.04516,96161.0,96160.0,0.00219803]
[1763232235290,0.40596,96161.0,96160.0,0.00219803]
[1763232235684,0.40596,96161.0,96160.0,0.02471803]
[1763232238396,0.40596,96161.0,96160.0,0.04651803]
[1763232238600,0.02237,96161.0,96160.0,0.05610803]
[1763232239101,0.04451,96161.0,96160.0,0.05610803]
[1763232243492,0.000156,96170.0,96169.0,0.04635]
[1763232243890,0.021256,96170.0,96169.0,0.04635]
[1763232244590,0.050276,96170.0,96169.0,0.04635]
[1763232247398,0.043396,96170.0,96169.0,0.04635]
[1763232271914,0.04432,96169.0,96168.0,0.07487514]
[1763232272117,0.04432,96161.0,96160.0,0.16666756]
[1763232272314,0.04432,96161.0,96160.0,0.16886559]
[1763232272512,0.04432,96161.0,96160.0,0.04707803]
[1763232272720,0.04432,96161.0,96160.0,0.1219801]
[1763232274211,0.04432,96161.0,96160.0,0.04707803]
[1763232275117,0.04432,96161.0,96160.0,0.06000803]
[1763232277622,0.04432,96161.0,96160.0,0.04707803]
[1763232283325,0.04432,96161.0,96160.0,0.05813803]
[1763232293121,0.04432,96161.0,96160.0,0.04707803]
[1763232305530,0.04432,96161.0,96160.0,0.00219803]
[1763232306337,0.04477,96152.0,96151.0,0.044416]
[1763232310027,0.04477,96152.0,96151.0,0.000156]
[1763232310842,0.04477,96152.0,96151.0,0.023216]
[1763232311031,0.04477,96152.0,96151.0,0.044416]
[1763232311235,0.04477,96142.0,96141.0,9.431e-05]
[1763232311437,0.04477,96127.0,96126.0,0.00026008]
[1763232311635,0.05327,96111.0,96110.0,0.04392]
[1763232312336,0.05336431,96111.0,96110.0,0.04611803]
[1763232312945,0.04453431,96111.0,96110.0,0.04611803]
[1763232325057,0.04444,96102.0,96101.0,0.044076]
[1763232326857,0.04444,96102.0,96101.0,0.045076]
[1763232329653,0.04444,96102.0,96101.0,0.044076]
[1763232333165,0.40428,96109.0,96108.0,0.05367]
[1763232333556,0.3608,96109.0,96108.0,0.05367]
[1763232334165,9.431e-05,96111.0,96110.0,0.04387]
[1763232334365,0.04357431,96111.0,96110.0,0.04606803]
[1763232336967,0.04357431,96111.0,96110.0,0.00219803]
[1763232337269,0.04357431,96111.0,96110.0,0.02370803]
[1763232337468,0.40437431,96111.0,96110.0,0.00219803]
[1763232338466,0.04348,96102.0,96101.0,0.044026]
[1763232340072,0.04348,96102.0,96101.0,0.045026]
[1763232341770,0.04348,96102.0,96101.0,0.044026]
[1763232344669,0.04348,96102.0,96101.0,0.045026]
[1763232345070,0.06761516,96102.0,96101.0,0.045026]
[1763232345977,0.06761516,96102.0,96101.0,0.022666]
[1763232346167,0.06761516,96102.0,96101.0,0.045026]
[1763232346767,0.06761516,96102.0,96101.0,0.044026]
[1763232351879,0.06761516,96102.0,96101.0,0.000156]
[1763232352174,0.06761516,96102.0,96101.0,0.044026]
[1763232356386,0.04348,96102.0,96101.0,0.044026]
[1763232356583,0.06762189,96102.0,96101.0,0.044026]
[1763232358087,0.06762189,96102.0,96101.0,0.021666]
[1763232358287,0.04348,96102.0,96101.0,0.021666]
[1763232358889,0.04348,96102.0,96101.0,0.043286]
[1763232361696,0.04348,96102.0,96101.0,0.000156]
[1763232362094,0.04348,96102.0,96101.0,0.023026]
[1763232362395,0.04348,96102.0,96101.0,0.044646]
[1763232362594,0.04348,96102.0,96101.0,0.000156]
[1763232363000,0.04348,96102.0,96101.0,0.023026]
[1763232363686,0.04348,96102.0,96101.0,0.044646]
[1763232372397,0.04348,96102.0,96101.0,0.023026]
[1763232372604,0.04348,96102.0,96101.0,0.000156]
[1763232373585,0.0524,96096.0,96095.0,0.04835284]
[1763232375696,0.07655739,96096.0,96095.0,0.04835284]
[1763232376700,0.06919739,96096.0,96095.0,0.04835284]
[1763232376896,0.06919739,96096.0,96095.0,0.06098284]
[1763232378792,0.04504,96096.0,96095.0,0.06098284]
[1763232384197,0.04504,96096.0,96095.0,0.04835284]
[1763232384598,0.06913703,96096.0,96095.0,0.04835284]
[1763232393194,0.04504,96096.0,96095.0,0.04835284]
[1763232395717,0.05838,96096.0,96095.0,0.04835284]
[1763232397009,0.05838,96096.0,96095.0,0.00468284]
[1763232400715,0.08247816,96096.0,96095.0,0.00468284]
[1763232403414,0.08347816,96096.0,96095.0,0.00468284]
[1763232405115,0.08247816,96096.0,96095.0,0.00468284]
[1763232405317,0.08347816,96096.0,96095.0,0.00468284]
[1763232413419,0.08347816,96096.0,96095.0,0.02763284]
[1763232413721,0.05938,96096.0,96095.0,0.04894284]
[1763232413924,0.08359406,96096.0,96095.0,0.04894284]
[1763232414122,0.08359415,96096.0,96095.0,0.04894284]
[1763232414425,0.08359416,96096.0,96095.0,0.04894284]
[1763232420622,0.08359416,96096.0,96095.0,0.02639284]
[1763232421617,0.08359416,96096.0,96095.0,0.04849284]
[1763232423834,0.07025416,96096.0,96095.0,0.04849284]
[1763232424828,0.001,96096.0,96095.0,0.04849284]
[1763232425027,0.40530431,96111.0,96110.0,0.04381]
[1763232425229,0.42952412,96111.0,96110.0,0.04600803]
[1763232425526,0.42952287,96111.0,96110.0,0.04600803]
[1763232426721,0.06872287,96111.0,96110.0,0.04600803]
[1763232427030,0.06972287,96111.0,96110.0,0.04600803]
[1763232428125,0.04450431,96111.0,96110.0,0.04600803]
[1763232428322,0.04550431,96111.0,96110.0,0.04600803]
[1763232428920,0.04450431,96111.0,96110.0,0.04600803]
[1763232430524,0.04450431,96111.0,96110.0,0.40680803]
[1763232436619,0.04450431,96111.0,96110.0,0.04600803]
[1763232436921,0.04450431,96111.0,96110.0,0.00219803]
[1763232437128,0.04450431,96111.0,96110.0,0.04718803]
[1763232442835,0.02308431,96111.0,96110.0,0.04718803]
[1763232443228,0.04592431,96111.0,96110.0,0.04718803]
[1763232449630,9.431e-05,96111.0,96110.0,0.04718803]
[1763232449835,9.431e-05,96111.0,96110.0,0.40798803]
[1763232450341,0.023196,96120.0,96119.0,0.04405]
[1763232450641,0.045506,96120.0,96119.0,0.04405]
[1763232452241,0.046506,96120.0,96119.0,0.04405]
[1763232452433,0.047506,96120.0,96119.0,0.04405]
[1763232454340,0.08442418,96120.0,96119.0,0.04405]
[1763232454541,0.04535,96111.0,96110.0,0.04415463]
[1763232454734,0.04535,96111.0,96110.0,0.04635266]
[1763232462753,0.09422868,96120.0,96110.0,0.04635266]
[1763232462754,0.045506,96120.0,96119.0,0.04405]
[1763232463052,0.06970201,96120.0,96119.0,0.04405]